fUST/lending_fUST_20250826
["ID","MTS","AMOUNT","RATE_DAILY","PERIOD"]
[381461866,1756223248751,-500.0,0.0002866,2]
[381461867,1756223248772,-500.0,0.0002866,2]
[381461868,1756223248794,-500.0,0.0002866,2]
[381461869,1756223248815,-500.0,0.0002866,2]
[381461870,1756223248838,-500.0,0.0002866,2]
[381461871,1756223248861,-500.0,0.0002866,2]
[381461872,1756223248883,-500.0,0.0002866,2]
[381461873,1756223248903,-500.0,0.0002866,2]
[381461874,1756223248924,-639.99298244,0.0002866,2]
[381461875,1756223248947,-500.0,0.0002866,2]
[381461876,1756223248968,-500.0,0.0002866,2]
[381461877,1756223248991,-500.0,0.0002866,2]
[381461878,1756223249012,-500.0,0.0002866,2]
[381461879,1756223249034,-500.0,0.0002866,2]
[381461880,1756223249056,-500.0,0.0002866,2]
[381461881,1756223249082,-195.27181738,0.0002866,2]
[381461882,1756223249102,-500.0,0.0002866,2]
[381461883,1756223249123,-500.0,0.0002866,2]
[381461884,1756223249146,-500.0,0.0002866,2]
[381461885,1756223249168,-500.0,0.0002866,2]
[381461886,1756223249189,-500.0,0.0002866,2]
[381461887,1756223249210,-500.0,0.0002866,2]
[381461888,1756223249235,-500.0,0.0002866,2]
[381461889,1756223249256,-500.0,0.0002866,2]
[381461890,1756223249278,-500.0,0.0002866,2]
[381461891,1756223249299,-500.0,0.0002866,2]
[381461892,1756223249321,-500.0,0.0002866,2]
[381461893,1756223249341,-500.0,0.0002866,2]
[381461894,1756223249361,-500.0,0.0002866,2]
[381461895,1756223249382,-500.0,0.0002866,2]
[381461896,1756223249402,-623.59748008,0.0002866,2]
[381461897,1756223249422,-500.0,0.0002866,2]
[381461898,1756223249443,-500.0,0.0002866,2]
[381461899,1756223249464,-500.0,0.0002866,2]
[381461900,1756223249487,-500.0,0.0002866,2]
[381461901,1756223249507,-500.0,0.0002866,2]
[381461902,1756223249528,-500.0,0.0002866,2]
[381461903,1756223249549,-500.0,0.0002866,2]
[381461904,1756223249569,-500.0,0.0002866,2]
[381461905,1756223249595,-300.0,0.00028661,20]
[381461906,1756223249620,-300.0,0.00028661,20]
[381461907,1756223249646,-300.0,0.00028661,20]
[381461908,1756223249671,-300.0,0.00028661,20]
[381461909,1756223249698,-300.0,0.00028661,20]
[381461910,1756223249723,-300.0,0.00028661,20]
[381461911,1756223249749,-300.0,0.00028661,20]
[381461912,1756223249779,-300.0,0.00028661,20]
[381461913,1756223249805,-300.0,0.00028661,20]
[381461914,1756223249832,-300.0,0.00028661,20]
[381461915,1756223249859,-300.0,0.00028661,20]
[381461916,1756223249882,-19339.35150112,0.00028661,2]
[381461917,1756223267713,3522.52014074,0.00024444,4]
[381461918,1756223267738,10000.01,0.00024444,4]
[381461919,1756223267762,10000.01,0.00024444,4]
[381461920,1756223267784,10000.01,0.00024444,4]
[381461921,1756223267807,10000.01,0.00024444,4]
[381461922,1756223267829,10000.01,0.00024444,4]
[381461923,1756223267853,10000.01,0.00024444,4]
[381461924,1756223267876,10000.01,0.00024444,4]
[381461925,1756223267899,10000.01,0.00024444,4]
[381461926,1756223267921,10000.01,0.00024444,4]
[381461927,1756223267948,94250.78133039,0.00024444,4]
[381461928,1756223291996,3813.93590134,0.000271,2]
[381461929,1756223384756,1235.96745477,0.000199,2]
[381461930,1756223385338,1235.96745476,0.0002508,2]
[381461931,1756223385829,1235.96745476,0.00021627,2]
[381461932,1756223390643,1664.14009016,0.00027868,20]
[381461933,1756223428799,1000.0,0.00031995,49]
[381461969,1756223432913,-1235.96745476,0.00028533,10]
[381461970,1756223432924,-300.0,0.00028672,2]
[381461971,1756223432934,-300.0,0.00028672,2]
[381461972,1756223432943,-300.0,0.00028672,2]
[381461973,1756223432953,-1200.0,0.00028672,2]
[381461974,1756223432963,-2667.86146023,0.00028871,2]
[381461975,1756223432973,-500.0,0.00028973,5]
[381461976,1756223432982,-511.58,0.00028973,5]
[381461977,1756223432992,-160.0,0.00029014,2]
[381461978,1756223433002,-186.864,0.00029121,22]
[381461979,1756223433012,-1950.93600171,0.000292,7]
[381462074,1756223437917,-1777.00399829,0.000292,7]
[381462075,1756223437928,-151.47,0.00029255,15]
[381462076,1756223437938,-151.48,0.00029256,15]
[381462077,1756223437949,-1418.9354305,0.00029514,2]
[381462078,1756223437959,-500.0,0.00029613,2]
[381462079,1756223437968,-500.0,0.00029613,2]
[381462080,1756223437978,-471.8097118,0.00029613,2]
[381462081,1756223437988,-500.0,0.00029613,2]
[381462082,1756223437998,-500.0,0.00029613,2]
[381462083,1756223438009,-500.0,0.00029613,2]
[381462084,1756223438019,-500.0,0.00029613,2]
[381462085,1756223438029,-430.17843175,0.00029613,2]
[381462086,1756223438039,-500.0,0.00029613,2]
[381462087,1756223438049,-500.0,0.00029613,2]
[381462088,1756223438059,-426.89,0.00029613,2]
[381462089,1756223438069,-500.0,0.00029613,2]
[381462090,1756223438079,-500.0,0.00029613,2]
[381462091,1756223438089,-431.41071635,0.00029613,2]
[381462092,1756223438099,-500.0,0.00029613,2]
[381462093,1756223438109,-500.0,0.00029613,2]
[381462094,1756223438118,-500.0,0.00029613,2]
[381462095,1756223438129,-500.0,0.00029613,2]
[381462096,1756223438138,-500.0,0.00029613,2]
[381462097,1756223438148,-500.0,0.00029613,2]
[381462098,1756223438158,-500.0,0.00029613,2]
[381462099,1756223438168,-500.0,0.00029613,2]
[381462100,1756223438178,-512.35974801,0.00029613,2]
[381462101,1756223438189,-500.0,0.00029613,2]
[381462102,1756223438198,-500.0,0.00029613,2]
[381462103,1756223438208,-214.6011907,0.00029613,2]
[381462104,1756223438218,-500.0,0.00029613,2]
[381462105,1756223438228,-416.9,0.00029613,2]
[381462106,1756223438238,-500.0,0.00029613,2]
[381462107,1756223438252,-328.40236302,0.00029613,2]
[381462108,1756223438262,-50000.0,0.00029614,2]
[381462109,1756223438272,-176.0,0.00029616,120]
[381462110,1756223438282,-513.4921152,0.00029673,5]
[381462111,1756223438292,-500.68847206,0.00029673,5]
[381462112,1756223438302,-500.0,0.00029673,5]
[381462113,1756223438312,-500.0,0.00029673,5]
[381462114,1756223438321,-500.0,0.00029673,5]
[381462115,1756223438539,-500.0,0.00029673,5]
[381462116,1756223438560,-500.0,0.00029673,5]
[381462117,1756223438569,-600.0,0.00029706,20]
[381462118,1756223438579,-300.0,0.00029706,20]
[381462119,1756223438588,-300.0,0.00029706,20]
[381462120,1756223438597,-300.0,0.00029706,20]
[381462121,1756223438607,-519.86984704,0.00029866,2]
[381462122,1756223438616,-479.75558099,0.00029869,2]
[381462123,1756223438626,-1910.28971424,0.00030127,2]
[381462124,1756223438636,-162.855111,0.00030137,2]
[381462125,1756223438645,-500.0,0.00030221,5]
[381462126,1756223438654,-1000.0,0.00030221,5]
[381462127,1756223438664,-500.0,0.00030221,5]
[381462128,1756223438673,-1000.0,0.00030221,5]
[381462129,1756223438682,-625.45,0.00030239,3]
[381462130,1756223438692,-469.13,0.00030239,3]
[381462131,1756223438701,-502.5863727,0.00030271,5]
[381462132,1756223438711,-508.35248554,0.00030271,5]
[381462133,1756223438720,-500.0,0.00030271,5]
[381462134,1756223438730,-500.0,0.00030273,5]
[381462135,1756223438744,-162.71854568,0.00030273,5]
[381462136,1756223438754,-500.0,0.00030273,5]
[381462137,1756223438764,-160.0,0.00030317,2]
[381462138,1756223438774,-1851.67264,0.000305,8]
[381462139,1756223438783,-160.0,0.00030645,2]
[381462140,1756223438793,-1220.8201762,0.00030669,2]
[381462141,1756223438802,-2524.82941417,0.00030736,2]
[381462142,1756223438816,-807.48457469,0.00030751,2]
[381462143,1756223438827,-280.0,0.00030761,2]
[381462144,1756223438837,-217.18350301,0.00030766,2]
[381462145,1756223438848,-160.0,0.00030766,2]
[381462146,1756223438858,-160.0,0.00030766,2]
[381462147,1756223438868,-232.53539143,0.00030766,2]
[381462148,1756223438878,-845.07960918,0.00030766,2]
[381462149,1756223438887,-216.09257821,0.00030766,2]
[381462150,1756223438897,-1000.0,0.00030768,5]
[381462151,1756223438906,-2618.2481025,0.00030791,2]
[381462152,1756223438915,-207.56147128,0.00030792,2]
[381462153,1756223438925,-500.0,0.00030792,2]
[381462154,1756223438935,-417.21237459,0.00030792,2]
[381462155,1756223438944,-151.0,0.00030792,2]
[381462156,1756223438954,-151.0,0.00030792,2]
[381462157,1756223438963,-151.0,0.00030792,2]
[381462158,1756223438973,-201.93286099,0.00030792,2]
[381462159,1756223438983,-151.0,0.00030792,2]
[381462160,1756223438994,-151.0,0.00030792,2]
[381462161,1756223439005,-151.0,0.00030792,2]
[381462162,1756223439014,-151.0,0.00030792,2]
[381462163,1756223439024,-151.0,0.00030792,2]
[381462164,1756223439034,-151.0,0.00030792,2]
[381462165,1756223439043,-151.0,0.00030792,2]
[381462166,1756223439053,-151.0,0.00030792,2]
[381462167,1756223439063,-151.0,0.00030792,2]
[381462168,1756223439073,-807.48457469,0.000308,2]
[381462169,1756223439082,-155.76023373,0.0003081,2]
[381462170,1756223439092,-503.89808451,0.0003081,2]
[381462171,1756223439102,-503.89808451,0.0003081,2]
[381462172,1756223439111,-503.89808451,0.0003081,2]
[381462173,1756223439121,-503.89808451,0.0003081,2]
[381462174,1756223439131,-503.89808451,0.0003081,2]
[381462175,1756223439140,-503.89808451,0.0003081,2]
[381462176,1756223439149,-503.89808451,0.0003081,2]
[381462177,1756223439159,-503.89808451,0.0003081,2]
[381462178,1756223439168,-503.89808451,0.0003081,2]
[381462179,1756223439178,-515.75451002,0.0003081,2]
[381462180,1756223439187,-515.75451002,0.0003081,2]
[381462181,1756223439196,-515.75451002,0.0003081,2]
[381462182,1756223439206,-515.75451002,0.0003081,2]
[381462183,1756223439215,-515.75451002,0.0003081,2]
[381462184,1756223439224,-515.75451002,0.0003081,2]
[381462185,1756223439235,-555.77665368,0.0003081,2]
[381462186,1756223439245,-555.77665368,0.0003081,2]
[381462187,1756223439254,-555.77665368,0.0003081,2]
[381462188,1756223439265,-555.77665368,0.0003081,2]
[381462189,1756223439275,-555.77665368,0.0003081,2]
[381462190,1756223439286,-555.77665368,0.0003081,2]
[381462191,1756223439295,-555.77665368,0.0003081,2]
[381462192,1756223439305,-611.15533073,0.0003081,2]
[381462193,1756223439315,-611.15533073,0.0003081,2]
[381462194,1756223439325,-611.15533073,0.0003081,2]
[381462195,1756223439337,-67052.0140154,0.00030811,2]
[381462196,1756223439347,-500.0,0.00030821,5]
[381462197,1756223439358,-363.56989013,0.00030821,5]
[381462198,1756223439367,-376.39720582,0.00030833,2]
[381462199,1756223439378,-160.0,0.00030833,2]
[381462200,1756223439387,-2715.12328229,0.00030846,2]
[381462201,1756223439396,-260.0,0.00030865,2]
[381462202,1756223439406,-500.0,0.00030873,5]
[381462203,1756223439415,-500.0,0.00030873,5]
[381462204,1756223439425,-500.0,0.00030873,5]
[381462205,1756223439435,-500.0,0.00030873,5]
[381462206,1756223439446,-2815.58284374,0.00030901,2]
[381462207,1756223439456,-420.0,0.00030944,2]
[381462208,1756223439466,-1929.54764839,0.00030956,2]
[381462209,1756223439475,-1000.0,0.00031,8]
[381462210,1756223439485,-280.0,0.0003104,7]
[381462211,1756223439495,-500.0,0.00031073,5]
[381462212,1756223439504,-500.0,0.00031073,5]
[381462213,1756223439513,-1680.0,0.00031078,3]
[381462215,1756223439523,-807.48457469,0.000312,2]
[381462216,1756223439532,-7534.2046794,0.0003121,2]
[381462218,1756223439541,-458.85,0.00031212,2]
[381462219,1756223439551,-310.0,0.00031374,2]
[381462220,1756223439561,-3317.24168908,0.000314,2]
[381462221,1756223439571,-360.0,0.00031413,2]
[381462222,1756223439580,-500.0,0.00031421,5]
[381462223,1756223439590,-500.0,0.00031421,5]
[381462224,1756223439600,-500.0,0.00031421,5]
[381462225,1756223439610,-1000.0,0.00031421,5]
[381462226,1756223439621,-250.0,0.00031433,2]
[381462227,1756223439632,-280.0,0.00031461,7]
[381462228,1756223439643,-312.73,0.00031463,3]
[381462229,1756223439652,-500.0,0.00031473,5]
[381462231,1756223439662,-500.0,0.00031473,5]
[381462232,1756223439671,-501.22830489,0.00031473,5]
[381462234,1756223439682,-500.0,0.00031473,2]
[381462235,1756223439691,-500.0,0.00031473,5]
[381462237,1756223439700,-500.0,0.00031473,5]
[381462239,1756223439710,-500.0,0.00031473,5]
[381462241,1756223439720,-500.0,0.00031473,5]
[381462242,1756223439730,-500.0,0.00031473,5]
[381462243,1756223439741,-807.48457469,0.0003148,2]
[381462244,1756223439753,-156.36,0.00031481,3]
[381462245,1756223439762,-280.0,0.00031483,2]
[381462246,1756223439772,-67052.0140154,0.0003149,2]
[381462247,1756223439783,-1000.0,0.000315,8]
[381462248,1756223439793,-150.0,0.00031573,5]
[381462249,1756223439803,-807.48457469,0.0003158,2]
[381462251,1756223439813,-14680.12632356,0.0003159,2]
[381462253,1756223439824,-1250.9,0.00031609,3]
[381462255,1756223439833,-230.44620326,0.00031621,5]
[381462257,1756223439843,-460.1691623,0.00031621,5]
[381462259,1756223439853,-500.0,0.00031673,5]
[381462261,1756223439862,-500.0,0.00031673,5]
[381462263,1756223439872,-500.0,0.00031673,5]
[381462265,1756223439881,-500.0,0.00031673,5]
[381462267,1756223439891,-511.0659137,0.00031673,5]
[381462269,1756223439902,-500.0,0.00031673,5]
[381462271,1756223439911,-500.0,0.00031673,5]
[381462273,1756223439921,-500.0,0.00031673,5]
[381462275,1756223439931,-500.0,0.00031673,5]
[381462277,1756223439941,-500.0,0.00031673,5]
[381462279,1756223439950,-500.0,0.00031673,5]
[381462281,1756223439960,-500.0,0.00031673,5]
[381462283,1756223439969,-500.0,0.00031673,5]
[381462285,1756223439979,-2422.45372407,0.0003168,2]
[381462287,1756223439989,-61125.7953526,0.0003169,2]
[381462318,1756223440268,-725.02279502,0.0003169,2]
[381462320,1756223440280,-23565.7595364,0.0003169,2]
[381462322,1756223440292,-15438.31647632,0.0003169,2]
[381462325,1756223440304,-33249.13387066,0.0003169,2]
[381462327,1756223440314,-807.48457469,0.0003169,2]
[381462329,1756223440324,-215.260999,0.0003169,10]
[381462331,1756223440333,-3727.94,0.000317,7]
[381462333,1756223440342,-3226.58,0.000317,7]
[381462335,1756223440352,-10354.77056349,0.000317,7]
[381462337,1756223440364,-61024.08943651,0.000317,7]
[381462339,1756223440374,-376.39720582,0.000317,7]
[381462341,1756223440384,-217.18350301,0.000317,7]
[381462343,1756223440394,-160.0,0.000317,7]
[381462345,1756223440403,-1919.02232397,0.00031712,2]
[381462347,1756223440412,-1418.93543045,0.00031859,2]
[381462349,1756223440422,-280.0,0.00031874,2]
[381462351,1756223440431,-460.0,0.00031961,2]
[381462353,1756223440440,-509.06738748,0.00031968,5]
[381462355,1756223440450,-356.0,0.00031985,60]
[381462357,1756223440460,-807.48457469,0.00031985,2]
[381462359,1756223440469,-1235.96745476,0.00031986,17]
[381462361,1756223440478,-2600.71,0.00031995,60]
[381462363,1756223440489,-482.88255195,0.00031995,2]
[381462365,1756223440501,-1000.0,0.00032,8]
[381462367,1756223440510,-4780.0,0.00032,120]
[381462369,1756223440520,-1000.0,0.00032021,5]
[381462371,1756223440529,-1000.0,0.00032021,5]
[381462373,1756223440539,-1000.0,0.00032021,2]
[381462375,1756223440548,-1000.0,0.00032021,5]
[381462378,1756223440558,-1000.0,0.00032021,5]
[381462380,1756223440567,-500.0,0.00032021,5]
[381462382,1756223440578,-1000.0,0.00032021,5]
[381462384,1756223440587,-588.93873768,0.00032021,5]
[381462386,1756223440597,-280.0,0.00032086,7]
[381462388,1756223440607,-300.0,0.00032121,5]
[381462390,1756223440617,-209.40437684,0.00032161,2]
[381462392,1756223440627,-1000.0,0.00032221,5]
[381462394,1756223440636,-1000.0,0.00032221,5]
[381462396,1756223440646,-1000.0,0.00032221,5]
[381462398,1756223440656,-1000.0,0.00032221,5]
[381462400,1756223440666,-1000.0,0.00032221,5]
[381462402,1756223440676,-164.74471917,0.00032221,5]
[381462404,1756223440686,-1000.0,0.00032221,5]
[381462406,1756223440696,-1000.0,0.00032221,5]
[381462408,1756223440706,-1000.0,0.00032221,5]
[381462410,1756223440716,-1000.0,0.00032221,5]
[381462412,1756223440726,-1000.0,0.00032221,5]
[381462414,1756223440738,-500.0,0.00032221,5]
[381462416,1756223440750,-560.0,0.00032508,2]
[381462418,1756223440760,-892.26872128,0.00032568,5]
[381462420,1756223440772,-500.0,0.00032568,5]
[381462423,1756223440783,-1500.0,0.00032568,2]
[381462425,1756223440794,-1370.8673848,0.00032568,5]
[381462432,1756223440859,-1009.72641863,0.00032568,5]
[381462434,1756223440869,-280.0,0.00032572,2]
[381462436,1756223440879,-450.0,0.00032668,5]
[381462438,1756223440889,-720.0,0.00032677,20]
[381462440,1756223440898,-1614.96914938,0.00032749,2]
[381462442,1756223440908,-67052.0140154,0.00032758,2]
[381462444,1756223440918,-1500.0,0.00032768,5]
[381462446,1756223440927,-732.66998372,0.00032768,5]
[381462448,1756223440936,-1006.2646628,0.00032768,5]
[381462450,1756223440946,-1500.0,0.00032768,5]
[381462452,1756223440957,-1500.0,0.00032768,5]
[381462454,1756223440967,-343.64439473,0.00032768,5]
[381462456,1756223440976,-1500.0,0.00032768,5]
[381462458,1756223440987,-1500.0,0.00032768,5]
[381462460,1756223441002,-292.14363601,0.00032768,5]
[381462462,1756223441012,-7108.82162916,0.00032794,2]
[381462464,1756223441021,-450.26091655,0.00032794,2]
[381462466,1756223441031,-1801.04366618,0.00032794,2]
[381462468,1756223441040,-4048.29590066,0.00032794,2]
[381462470,1756223441049,-2763.40426528,0.00032794,2]
[381462472,1756223441058,-625.46,0.00032833,3]
[381462474,1756223441068,-3317.24168904,0.0003285,2]
[381462476,1756223441078,-312.72,0.00032851,3]
[381462478,1756223441087,-280.0,0.00032938,2]
[381462480,1756223441098,-151.0,0.00032999,2]
[381462482,1756223441107,-151.0,0.00032999,2]
[381462484,1756223441118,-220.76771929,0.00032999,2]
[381462486,1756223441130,-211.98158781,0.00032999,2]
[381462488,1756223441140,-151.0,0.00032999,2]
[381462490,1756223441149,-151.0,0.00032999,2]
[381462492,1756223441159,-151.0,0.00032999,2]
[381462494,1756223441168,-151.0,0.00032999,2]
[381462496,1756223441178,-198.0,0.00032999,2]
[381462498,1756223441187,-151.0,0.00032999,2]
[381462500,1756223441197,-151.0,0.00032999,2]
[381462502,1756223441207,-151.0,0.00032999,2]
[381462504,1756223441216,-151.0,0.00032999,2]
[381462506,1756223441226,-151.54982774,0.00032999,2]
[381462508,1756223441235,-151.0,0.00032999,2]
[381462510,1756223441244,-189.84344737,0.00032999,2]
[381462512,1756223441254,-151.0,0.00032999,2]
[381462514,1756223441263,-151.0,0.00032999,2]
[381462516,1756223441272,-1437.0,0.00033007,2]
[381462518,1756223441282,-660.0,0.00033056,2]
[381462520,1756223441291,-280.0,0.00033065,2]
[381462522,1756223441300,-500.0,0.00033073,5]
[381462524,1756223441309,-1614.96914938,0.0003309,2]
[381462526,1756223441318,-71378.86,0.000331,14]
[381462528,1756223441327,-342.0,0.00033101,2]
[381462530,1756223441337,-2000.0,0.00033116,2]
[381462532,1756223441346,-500.0,0.00033173,2]
[381462534,1756223441357,-500.0,0.00033173,5]
[381462536,1756223441369,-6000.0,0.00033196,4]
[381462538,1756223441377,-15890.84,0.000332,14]
[381462540,1756223441387,-168.0,0.0003321,2]
[381462542,1756223441396,-280.0,0.00033213,2]
[381462544,1756223441405,-151.0,0.00033273,2]
[381462546,1756223441414,-151.0,0.00033273,2]
[381462548,1756223441423,-151.0,0.00033273,2]
[381462550,1756223441433,-151.0,0.00033273,2]
[381462552,1756223441442,-151.0,0.00033273,2]
[381462554,1756223441451,-151.0,0.00033273,2]
[381462555,1756223441460,-245.0,0.00033273,2]
[381462557,1756223441470,-342.0,0.00033296,7]
[381462559,1756223441479,-3226.58,0.000333,7]
[381462561,1756223441488,-807.48457469,0.00033315,2]
[381462563,1756223441498,-471.7674995,0.00033316,5]
[381462565,1756223441507,-2000.0,0.00033316,5]
[381462567,1756223441517,-500.0,0.00033316,5]
[381462570,1756223441527,-2000.0,0.00033316,5]
[381462572,1756223441536,-179.69451932,0.00033325,10]
[381462574,1756223441545,-587.0,0.00033396,2]
[381462576,1756223441555,-342.0,0.00033465,2]
[381462577,1756223441564,-3727.94,0.000335,7]
[381462579,1756223441574,-217.15233878,0.0003353,2]
[381462582,1756223441584,-198.0,0.00033547,2]
[381462584,1756223441593,-151.0,0.00033547,2]
[381462585,1756223441602,-151.0,0.00033547,2]
[381462587,1756223441611,-151.0,0.00033547,2]
[381462589,1756223441621,-4313.48242869,0.00033555,2]
[381462591,1756223441630,-760.0,0.00033604,2]
[381462593,1756223441640,-500.0,0.00033621,5]
[381462595,1756223441649,-2077.39990877,0.00033636,2]
[381462597,1756223441659,-2500.0,0.00033664,2]
[381462599,1756223441668,-938.0,0.00033686,3]
[381462601,1756223441678,-807.48457469,0.00033689,2]
[381462603,1756223441687,-27482.7117237,0.00033699,2]
[381462605,1756223441697,-1235.96745476,0.00033712,21]
[381462607,1756223441707,-585.37547107,0.00033721,2]
[381462610,1756223441717,-1000.0,0.00033721,5]
[381462612,1756223441727,-292.0,0.00033821,2]
[381462613,1756223441739,-198.0,0.00033821,2]
[381462616,1756223441756,-198.0,0.00033821,2]
[381462617,1756223441766,-152.671269,0.00033848,6]
[381462619,1756223441776,-342.0,0.00033864,7]
[381462622,1756223441785,-2500.0,0.00033864,5]
[381462624,1756223441795,-2500.0,0.00033864,5]
[381462625,1756223441804,-5000.0,0.00033998,4]
[381462627,1756223441813,-465.0,0.00034004,2]
[381462629,1756223441823,-342.0,0.00034124,2]
[381462631,1756223441832,-860.0,0.00034152,2]
[381462633,1756223441841,-1418.93543045,0.00034203,2]
[381462635,1756223441851,-3000.0,0.00034212,2]
[381462637,1756223441860,-465.0,0.00034265,2]
[381462639,1756223441870,-1006.64297383,0.00034268,5]
[381462641,1756223441879,-3317.24168904,0.000343,2]
[381462643,1756223441889,-342.0,0.00034389,2]
[381462645,1756223441898,-1614.96914938,0.0003439,2]
[381462647,1756223441907,-15890.84,0.000344,14]
[381462649,1756223441917,-71378.86,0.000344,14]
[381462651,1756223441926,-342.0,0.00034406,2]
[381462653,1756223441936,-3000.0,0.00034412,5]
[381462655,1756223441945,-3000.0,0.00034412,5]
[381462657,1756223441954,-152.671269,0.00034438,2]
[381462659,1756223441963,-342.0,0.00034447,7]
[381462661,1756223441973,-152.671269,0.00034476,20]
[381462663,1756223441982,-465.0,0.000345,2]
[381462665,1756223441991,-342.0,0.00034607,2]
[381462667,1756223442000,-342.0,0.00034669,2]
[381462669,1756223442010,-3226.58,0.000347,7]
[381462671,1756223442019,-960.0,0.000347,2]
[381462673,1756223442029,-2784.86288847,0.0003476,2]
[381462675,1756223442038,-225.18697532,0.00034899,2]
[381462677,1756223442047,-3500.0,0.0003496,5]
[381462679,1756223442057,-546.08317985,0.0003496,5]
[381462681,1756223442066,-807.48457469,0.0003499,2]
[381462683,1756223442076,-10636.63547363,0.00035,2]
[381462685,1756223442087,-652.77726232,0.00035,2]
[381462687,1756223442096,-1817.16124675,0.00035,2]
[381462689,1756223442105,-17000.0,0.00035,60]
[381462691,1756223442114,-5406.13953124,0.00035,2]
[381462693,1756223442123,-1722.64039975,0.00035,120]
[381462695,1756223442133,-529.46310268,0.00035,120]
[381462697,1756223442142,-1060.0,0.00035248,2]
[381462699,1756223442151,-160.0,0.00035293,3]
[381462700,1756223442160,-3727.94,0.000353,7]
[381462702,1756223442169,-1235.96745476,0.00035439,24]
[381462705,1756223442179,-246.73612045,0.00035508,5]
[381462706,1756223442188,-173.45921025,0.00035516,2]
[381462708,1756223442197,-152.671269,0.00035584,60]
[381462711,1756223442207,-500.0,0.00035616,7]
[381462712,1756223442216,-500.0,0.00035616,7]
[381462715,1756223442229,-500.0,0.00035616,7]
[381462717,1756223442238,-500.0,0.00035616,7]
[381462719,1756223442248,-500.0,0.00035616,7]
[381462721,1756223442258,-500.0,0.00035616,7]
[381462723,1756223442267,-500.0,0.00035616,7]
[381462725,1756223442277,-500.0,0.00035616,7]
[381462727,1756223442286,-500.0,0.00035616,7]
[381462729,1756223442296,-500.0,0.00035616,7]
[381462731,1756223442306,-500.0,0.00035616,7]
[381462733,1756223442316,-500.0,0.00035616,7]
[381462735,1756223442325,-500.0,0.00035616,7]
[381462737,1756223442334,-500.0,0.00035616,7]
[381462739,1756223442343,-500.0,0.00035616,7]
[381462741,1756223442353,-500.0,0.00035616,7]
[381462743,1756223442362,-500.0,0.00035616,7]
[381462745,1756223442371,-500.0,0.00035616,7]
[381462747,1756223442381,-500.0,0.00035616,7]
[381462749,1756223442390,-500.0,0.00035616,7]
[381462751,1756223442399,-500.0,0.00035616,7]
[381462753,1756223442408,-500.0,0.00035616,7]
[381462755,1756223442417,-500.0,0.00035616,7]
[381462757,1756223442426,-438.95087517,0.00035616,7]
[381462759,1756223442436,-500.0,0.00035616,7]
[381462761,1756223442445,-500.0,0.00035616,7]
[381462763,1756223442454,-500.0,0.00035616,7]
[381462765,1756223442464,-500.0,0.00035616,7]
[381462767,1756223442473,-500.0,0.00035616,7]
[381462769,1756223442482,-250.0,0.00035616,7]
[381462771,1756223442491,-500.0,0.00035616,7]
[381462773,1756223442500,-500.0,0.00035616,7]
[381462775,1756223442510,-500.0,0.00035616,7]
[381462777,1756223442519,-191.57843598,0.00035616,2]
[381462779,1756223442528,-3317.24168904,0.0003575,2]
[381462781,1756223442538,-807.48457469,0.0003579,3]
[381462783,1756223442548,-1160.0,0.00035796,2]
[381462785,1756223442557,-15890.84,0.000358,14]
[381462787,1756223442566,-71378.86,0.000359,14]
[381462789,1756223442576,-864.0,0.00035944,20]